fUSD/lending_fUSD_20240808
["ID","MTS","AMOUNT","RATE_DAILY","PERIOD"]
[334428499,1723089038808,-1000.0,0.00011382,2]
[334428500,1723089038819,-313.21,0.00011391,2]
[334428501,1723089038831,-250.0,0.00011411,2]
[334428502,1723089038841,-420.17168426,0.00011412,2]
[334428503,1723089038851,-4657.5,0.00011456,2]
[334428504,1723089038861,-1852.42,0.00011541,2]
[334428505,1723089038871,-302.58,0.0001158,2]
[334428506,1723089038880,-343.1,0.000116,2]
[334428507,1723089038889,-23900.0,0.00011802,2]
[334428508,1723089038898,-333.01527703,0.000119,2]
[334428509,1723089038908,-389.04,0.00012044,2]
[334428510,1723089038917,-255.0,0.00012044,2]
[334428512,1723089038926,-420.0,0.00012099,2]
[334428514,1723089038936,-6883.08,0.00012206,2]
[334428516,1723089038946,-1256.0,0.00012206,2]
[334428518,1723089038955,-857.371,0.00012206,2]
[334428520,1723089038965,-1583.0,0.00012206,2]
[334428522,1723089038975,-622.0,0.00012206,2]
[334428524,1723089038984,-472.018,0.00012206,2]
[334428526,1723089038994,-1158.0,0.00012206,2]
[334428528,1723089039002,-1671.0,0.00012206,2]
[334428530,1723089039011,-8839.378,0.00012206,2]
[334428532,1723089039025,-289.0,0.00012206,2]
[334428533,1723089039034,-3217.941,0.00012206,2]
[334428535,1723089039044,-1075.0,0.00012206,2]
[334428537,1723089039053,-150.0,0.00012206,2]
[334428539,1723089039062,-151.0,0.00012206,2]
[334428541,1723089039072,-154.512324,0.00012206,2]
[334428543,1723089039081,-151.0,0.00012206,2]
[334428545,1723089039091,-151.0,0.00012206,2]
[334428547,1723089039100,-151.0,0.00012206,2]
[334428549,1723089039110,-151.0,0.00012206,2]
[334428551,1723089039121,-151.0,0.00012206,2]
[334428553,1723089039130,-151.588408,0.00012206,2]
[334428555,1723089039141,-151.0,0.00012206,2]
[334428557,1723089039151,-151.459011,0.00012206,2]
[334428558,1723089039162,-151.0,0.00012206,2]
[334428560,1723089039171,-151.0,0.00012206,2]
[334428562,1723089039181,-152.157917,0.00012206,2]
[334428564,1723089039190,-165.288501,0.00012206,2]
[334428566,1723089039199,-151.0,0.00012206,2]
[334428568,1723089039208,-869.407713,0.00012206,2]
[334428570,1723089039218,-869.407713,0.00012206,2]
[334428572,1723089039229,-151.282044,0.00012206,2]
[334428574,1723089039239,-351.44,0.00012233,2]
[334428576,1723089039249,-250.0,0.00012453,2]
[334428578,1723089039259,-412.94220925,0.00012456,2]
[334428579,1723089039269,-174.27,0.00012599,2]
[334428581,1723089039278,-384.92,0.00012689,2]
[334428583,1723089039287,-1000.0,0.00012804,2]
[334428585,1723089039297,-152.61286,0.00012862,2]
[334428587,1723089039306,-153.327349,0.00012862,2]
[334428589,1723089039315,-151.12617,0.00012862,2]
[334428591,1723089039325,-151.0,0.00012862,2]
[334428593,1723089039334,-151.0,0.00012862,2]
[334428594,1723089039344,-151.0,0.00012862,2]
[334428596,1723089039353,-151.0,0.00012862,2]
[334428598,1723089039363,-151.0,0.00012862,2]
[334428600,1723089039372,-251.194617,0.00012862,2]
[334428602,1723089039381,-333.01527703,0.000129,2]
[334428604,1723089039391,-550.0,0.00013,2]
[334428606,1723089039400,-5000.0,0.00013132,2]
[334428608,1723089039409,-5000.0,0.00013132,2]
[334428610,1723089039419,-587.0,0.00013309,2]
[334428611,1723089039429,-200.0,0.00013699,2]
[334428613,1723089039439,-163.34208761,0.00013797,2]
[334428615,1723089039449,-151.0,0.000138,2]
[334428617,1723089039460,-151.0,0.000138,2]
[334428619,1723089039470,-171.331213,0.000138,2]
[334428621,1723089039480,-153.13382,0.000138,2]
[334428623,1723089039489,-151.0,0.000138,2]
[334428625,1723089039499,-152.16522,0.000138,2]
[334428627,1723089039508,-151.405245,0.000138,2]
[334428629,1723089039518,-151.0,0.000138,2]
[334428631,1723089039528,-152.940324,0.000138,2]
[334428633,1723089039538,-151.0,0.000138,2]
[334428635,1723089039548,-151.0,0.000138,2]
[334428637,1723089039559,-151.0,0.000138,2]
[334428639,1723089039568,-151.321779,0.000138,2]
[334428641,1723089039578,-151.485613,0.000138,2]
[334428643,1723089039587,-151.0,0.000138,2]
[334428644,1723089039596,-152.366434,0.000138,2]
[334428646,1723089039605,-151.0,0.000138,2]
[334428648,1723089039615,-151.131034,0.000138,2]
[334428650,1723089039624,-151.0,0.000138,2]
[334428652,1723089039633,-151.0,0.000138,2]
[334428654,1723089039645,-151.0,0.000138,2]
[334428656,1723089039656,-151.0,0.000138,2]
[334428658,1723089039666,-154.014463,0.000138,2]
[334428660,1723089039676,-151.0,0.000138,2]
[334428662,1723089039687,-151.0,0.000138,2]
[334428664,1723089039696,-151.0,0.000138,2]
[334428666,1723089039706,-151.0,0.000138,2]
[334428667,1723089039715,-152.086035,0.000138,2]
[334428669,1723089039726,-151.0,0.000138,2]
[334428671,1723089039736,-153.592261,0.000138,2]
[334428673,1723089039746,-151.0,0.000138,2]
[334428675,1723089039755,-151.0,0.000138,2]
[334428677,1723089039764,-151002.41375248,0.000138,3]
[334428775,1723089040801,-1622.691835,0.000138,3]
[334428779,1723089040813,-372.94911677,0.000138,3]
[334428782,1723089040825,-3547.97188898,0.000138,3]
[334428784,1723089040837,-1117.77663526,0.000138,3]
[334428786,1723089040849,-1341.57,0.000138,3]
[334428789,1723089040862,-1720.75393469,0.000138,3]
[334428791,1723089040878,-473.3383626,0.000138,3]
[334428793,1723089040889,-752.98455,0.000138,3]
[334428795,1723089040900,-832.72491865,0.000138,3]
[334428797,1723089040911,-600.5,0.000138,3]
[334428801,1723089040938,-63546.58904457,0.000138,3]
[334428803,1723089040947,-151.0,0.000138,2]
[334428805,1723089040955,-151.0,0.000138,2]
[334428807,1723089040965,-151.734772,0.000138,2]
[334428808,1723089040974,-151.0,0.000138,2]
[334428809,1723089040983,-151.0,0.000138,2]
[334428810,1723089040992,-869.407713,0.000138,2]
[334428811,1723089041001,-869.407713,0.000138,2]
[334428812,1723089041010,-151.0,0.000138,2]
[334428813,1723089041020,-264.624808,0.000138,2]
[334428814,1723089041029,-151.0,0.000138,2]
[334428815,1723089041039,-151.0,0.000138,2]
[334428816,1723089041048,-302.58,0.00013844,2]
[334428817,1723089041057,-11346.613202,0.0001388,3]
[334428818,1723089041066,-151.791538,0.0001389,2]
[334428819,1723089041075,-152.377692,0.0001389,2]
[334428820,1723089041085,-151.239994,0.0001389,2]
[334428821,1723089041094,-151.0,0.0001389,2]
[334428822,1723089041103,-151.806143,0.0001389,2]
[334428823,1723089041112,-151.0,0.0001389,2]
[334428824,1723089041121,-151.0,0.0001389,2]
[334428825,1723089041130,-151.0,0.0001389,2]
[334428826,1723089041139,-151.0,0.0001389,2]
[334428827,1723089041149,-151.0,0.0001389,2]
[334428828,1723089041158,-152.229933,0.0001389,2]
[334428829,1723089041167,-151.0,0.0001389,2]
[334428830,1723089041176,-151.0,0.0001389,2]
[334428831,1723089041185,-151.0,0.0001389,2]
[334428832,1723089041194,-11346.613202,0.0001389,3]
[334428834,1723089041203,-151.0,0.000139,2]
[334428836,1723089041213,-151.790762,0.000139,2]
[334428838,1723089041222,-151.457431,0.000139,2]
[334428840,1723089041231,-151.0,0.000139,2]
[334428842,1723089041240,-151.0,0.000139,2]
[334428843,1723089041249,-301.811834,0.000139,2]
[334428845,1723089041258,-151.864551,0.000139,2]
[334428846,1723089041267,-151.0,0.000139,2]
[334428848,1723089041276,-151.0,0.000139,2]
[334428850,1723089041286,-151.0,0.000139,2]
[334428852,1723089041295,-151.0,0.000139,2]
[334428854,1723089041304,-151.0,0.000139,2]
[334428856,1723089041313,-151.0,0.000139,2]
[334428858,1723089041323,-151.0,0.000139,2]
[334428859,1723089041333,-151.0,0.000139,2]
[334428861,1723089041343,-151.0,0.000139,2]
[334428864,1723089041356,-151.0,0.000139,2]
[334428865,1723089041366,-201.463102,0.000139,2]
[334428867,1723089041375,-280.695997,0.000139,2]
[334428869,1723089041384,-169.311305,0.000139,2]
[334428871,1723089041393,-151.0,0.000139,2]
[334428873,1723089041403,-151.003466,0.000139,2]
[334428875,1723089041412,-4400.0,0.000139,5]
[334428877,1723089041421,-151.0,0.000139,2]
[334428879,1723089041430,-151.0,0.000139,2]
[334428880,1723089041439,-151.0,0.000139,2]
[334428882,1723089041448,-151.0,0.000139,2]
[334428884,1723089041458,-153.997818,0.000139,2]
[334428886,1723089041467,-220.479665,0.000139,2]
[334428888,1723089041477,-20226.99226039,0.000139,3]
[334428890,1723089041490,-1950.0,0.000139,3]
[334428893,1723089041502,-286.90284152,0.000139,3]
[334428895,1723089041513,-1724.8547474,0.000139,3]
[334428897,1723089041525,-11783.80762569,0.000139,3]
[334428899,1723089041535,-151.0,0.000139,2]
[334428901,1723089041544,-155.521618,0.000139,2]
[334428903,1723089041552,-151.0,0.000139,2]
[334428904,1723089041562,-151.0,0.000139,2]
[334428906,1723089041571,-869.407713,0.000139,2]
[334428908,1723089041580,-869.407713,0.000139,2]
[334428928,1723089041781,-869.407713,0.000139,2]
[334428930,1723089041790,-869.407713,0.000139,2]
[334428932,1723089041800,-333.01527703,0.000139,2]
[334428934,1723089041810,-151.0,0.000139,2]
[334428936,1723089041820,-156.65,0.00013973,2]
[334428938,1723089041830,-412.94220925,0.00014011,2]
[334428940,1723089041841,-11346.613202,0.00014063,3]
[334428942,1723089041851,-5138.93678214,0.00014063,3]
[334428944,1723089041862,-151.0,0.00014073,2]
[334428946,1723089041872,-151.0,0.00014073,2]
[334428948,1723089041882,-151.0,0.00014073,2]
[334428950,1723089041895,-151.0,0.00014073,2]
[334428953,1723089041908,-151.0,0.00014073,2]
[334428955,1723089041918,-151.0,0.00014073,2]
[334428957,1723089041929,-268.33626,0.00014073,2]
[334428959,1723089041939,-869.407713,0.00014073,2]
[334428961,1723089041948,-869.407713,0.00014073,2]
[334428963,1723089041957,-11346.613202,0.00014074,3]
[334428965,1723089041967,-5138.93678214,0.00014074,3]
[334428967,1723089041977,-11346.613202,0.00014074,3]
[334428969,1723089041986,-152.456171,0.00014084,2]
[334428971,1723089041995,-151.0,0.00014084,2]
[334428973,1723089042004,-151.0,0.00014084,2]
[334428975,1723089042014,-151.0,0.00014084,2]
[334428977,1723089042024,-151.0,0.00014084,2]
[334428979,1723089042033,-151.0,0.00014084,2]
[334428981,1723089042043,-151.0,0.00014084,2]
[334428983,1723089042052,-151.0,0.00014084,2]
[334428985,1723089042062,-151.0,0.00014093,2]
[334428987,1723089042073,-384.92,0.00014099,2]
[334428989,1723089042083,-1000.0,0.00014227,2]
[334428991,1723089042093,-155.0,0.0001443,2]
[334428993,1723089042102,-151.0,0.00014431,2]
[334428995,1723089042112,-735.0,0.0001464,2]
[334428997,1723089042121,-333.01527703,0.000149,2]
[334428999,1723089042131,-11346.613202,0.0001496,3]
[334429000,1723089042140,-5138.93678214,0.0001496,3]
[334429002,1723089042150,-151.0,0.0001497,2]
[334429004,1723089042159,-151.0,0.0001497,2]
[334429006,1723089042168,-251.831399,0.0001497,2]
[334429008,1723089042177,-151.0,0.0001497,2]
[334429010,1723089042186,-151.0,0.0001497,2]
[334429012,1723089042195,-151.0,0.0001497,2]
[334429014,1723089042205,-151.0,0.0001498,2]
[334429016,1723089042214,-151.0,0.0001498,2]
[334429018,1723089042223,-151.0,0.0001498,2]
[334429020,1723089042232,-151.0,0.0001498,2]
[334429022,1723089042241,-195.895438,0.0001498,2]
[334429024,1723089042250,-151.0,0.0001498,2]
[334429026,1723089042260,-151.0,0.0001498,2]
[334429028,1723089042269,-869.407713,0.0001498,2]
[334429030,1723089042280,-869.407713,0.0001498,2]
[334429032,1723089042289,-11346.613202,0.0001498,3]
[334429034,1723089042298,-2569.46839107,0.0001498,3]
[334429036,1723089042308,-6463.0,0.00015,2]
[334429038,1723089042318,-1299.0,0.00015,2]
[334429040,1723089042327,-151.0,0.00015,2]
[334429042,1723089042336,-151.0,0.00015,2]
[334429044,1723089042346,-151.0,0.00015,2]
[334429046,1723089042355,-151.0,0.00015,2]
[334429048,1723089042364,-999.68,0.00015,2]
[334429050,1723089042373,-151.0,0.00015,2]
[334429052,1723089042383,-282.011557,0.00015,2]
[334429053,1723089042392,-151.0,0.00015,2]
[334429055,1723089042401,-206.864207,0.00015,2]
[334429057,1723089042411,-151.0,0.00015,2]
[334429059,1723089042421,-151.0,0.00015,2]
[334429061,1723089042433,-151.0,0.00015,2]
[334429063,1723089042442,-150.0,0.00015206,2]
[334429065,1723089042452,-384.92,0.00015509,2]
[334429067,1723089042462,-412.94220925,0.00015567,2]
[334429069,1723089042471,-1000.0,0.0001565,2]
[334429071,1723089042482,-200.0,0.00015658,2]
[334429073,1723089042491,-431.65,0.00015833,2]
[334429075,1723089042501,-2569.46839107,0.00015835,3]
[334429077,1723089042511,-999.68,0.00015845,2]
[334429079,1723089042521,-333.01527703,0.000159,2]
[334429081,1723089042537,-689.26213,0.00016,2]
[334429083,1723089042546,-302.58,0.00016108,2]
[334429085,1723089042556,-170.312218,0.00016438,2]
[334429087,1723089042565,-999.68,0.0001669,2]
[334429089,1723089042575,-333.01527703,0.000169,2]
[334429091,1723089042584,-384.92,0.00016919,2]
[334429093,1723089042594,-869.407713,0.00016919,2]
[334429095,1723089042603,-869.407713,0.00016919,2]
[334429097,1723089042612,-3847.04,0.00016986,2]
[334429099,1723089042621,-1000.0,0.00017072,2]
[334429101,1723089042630,-173.01,0.00017093,2]
[334429103,1723089042641,-282.92,0.00017094,2]
[334429105,1723089042653,-412.94220925,0.00017122,2]
[334429106,1723089042663,-170.312218,0.0001726,2]
[334429108,1723089042672,-195.62,0.00017502,2]
[334429110,1723089042682,-999.68,0.00017535,2]
[334429112,1723089042692,-732.39,0.00017616,2]
[334429114,1723089042701,-426.15,0.00017616,2]
[334429116,1723089042711,-5138.93678214,0.00017631,3]
[334429118,1723089042721,-151.0,0.00017641,2]
[334429120,1723089042732,-275.58249,0.00017641,2]
[334429122,1723089042741,-151.0,0.00017641,2]
[334429124,1723089042750,-151.0,0.00017641,2]
[334429126,1723089042759,-333.01527703,0.000179,2]
[334429128,1723089042768,-308.16874741,0.00018,2]
[334429130,1723089042781,-676.11936882,0.00018,2]
[334429132,1723089042790,-170.312218,0.00018082,2]
[334429134,1723089042799,-161.898433,0.00018301,2]
[334429136,1723089042808,-796.89,0.00018301,2]
[334429138,1723089042817,-151.0,0.00018313,2]
[334429140,1723089042826,-151.0,0.00018313,2]
[334429142,1723089042835,-221.880042,0.00018313,2]
[334429144,1723089042843,-302.58,0.00018372,2]
[334429146,1723089042853,-999.68,0.0001838,2]
[334429147,1723089042862,-160.199571,0.00018382,2]
[334429149,1723089042872,-2569.46839107,0.00018428,3]
[334429151,1723089042881,-426.15,0.00018438,2]
[334429153,1723089042890,-426.15,0.00018438,2]
[334429155,1723089042899,-253.16,0.00018438,2]
[334429157,1723089042908,-530.74,0.00018438,2]
[334429159,1723089042917,-530.74,0.00018438,2]
[334429161,1723089042926,-530.74,0.00018438,2]
[334429163,1723089042935,-530.74,0.00018438,2]
[334429165,1723089042944,-778.92,0.00018438,2]
[334429167,1723089042953,-151.48,0.00018438,2]
[334429169,1723089042962,-2569.46839107,0.00018489,3]
[334429171,1723089042971,-151.0,0.00018499,2]
[334429173,1723089042980,-159.475257,0.00018499,2]
[334429175,1723089042989,-151.0,0.00018499,2]
[334429177,1723089042998,-151.0,0.00018508,2]
[334429179,1723089043007,-235.701024,0.00018508,2]
[334429181,1723089043017,-391.06336726,0.000186,2]
[334429182,1723089043028,-800.58,0.000186,7]
[334429184,1723089043037,-620.65442479,0.00018674,2]
[334429186,1723089043046,-412.94220925,0.00018678,2]
[334429188,1723089043055,-170.28661952,0.00018799,2]
[334429190,1723089043064,-2569.46839107,0.00018889,3]
[334429192,1723089043073,-174.27,0.00018899,2]
[334429194,1723089043083,-151.57,0.000189,2]
[334429196,1723089043092,-151.57,0.000189,2]
[334429198,1723089043100,-151.57,0.000189,2]
[334429200,1723089043110,-151.57,0.000189,2]
[334429202,1723089043119,-151.57,0.000189,2]
[334429204,1723089043127,-333.01527703,0.000189,2]
[334429206,1723089043136,-170.312218,0.00018904,2]
[334429207,1723089043146,-2000.0,0.00019,7]
[334429209,1723089043155,-869.407713,0.00019,2]
[334429211,1723089043164,-869.407713,0.00019,2]
[334429213,1723089043173,-7500.0,0.0001909,2]
[334429215,1723089043182,-2569.46839107,0.00019171,3]
[334429217,1723089043191,-2569.46839107,0.0001918,3]
[334429219,1723089043200,-238.449033,0.0001919,2]
[334429221,1723089043209,-151.0,0.000192,2]
[334429222,1723089043218,-151.0,0.0001921,2]
[334429224,1723089043227,-999.68,0.00019225,2]
[334429226,1723089043237,-282.92,0.00019231,2]
[334429228,1723089043246,-150.0,0.0001926,2]
[334429230,1723089043254,-730.07414927,0.00019356,2]
[334429232,1723089043263,-500.0,0.00019383,2]
[334429234,1723089043273,-150.0,0.00019433,2]
[334429236,1723089043283,-150.0,0.00019477,2]
[334429238,1723089043292,-150.0,0.00019498,2]
[334429240,1723089043302,-150.0,0.00019505,2]
[334429242,1723089043310,-150.0,0.00019524,2]
[334429244,1723089043319,-150.0,0.00019532,2]
[334429245,1723089043328,-150.0,0.00019535,2]
[334429247,1723089043337,-150.0,0.00019548,2]
[334429249,1723089043346,-150.0,0.00019557,2]
[334429251,1723089043355,-150.0,0.00019568,2]
[334429253,1723089043365,-150.0,0.00019573,2]
[334429255,1723089043374,-150.0,0.00019575,2]
[334429258,1723089043384,-150.0,0.00019584,2]
[334429260,1723089043393,-150.0,0.00019595,2]
[334429262,1723089043402,-150.0,0.00019634,2]
[334429264,1723089043411,-150.0,0.00019662,2]
[334429265,1723089043420,-2569.46839107,0.0001967,4]
[334429267,1723089043429,-150.0,0.00019673,2]
[334429269,1723089043438,-2578.04855771,0.0001968,2]
[334429271,1723089043448,-275.4860035,0.00019688,2]
[334429273,1723089043456,-1046.3125977,0.00019688,2]
[334429275,1723089043466,-150.0,0.0001969,4]
[334429277,1723089043475,-514.38097435,0.00019703,2]
[334429279,1723089043484,-2569.46839107,0.00019716,4]
[334429282,1723089043494,-170.312218,0.00019726,2]
[334429285,1723089043503,-500.0,0.00019732,2]
[334429288,1723089043513,-150.0,0.00019745,4]
[334429290,1723089043523,-150.0,0.00019801,4]
[334429292,1723089043532,-150.0,0.00019856,4]
[334429294,1723089043541,-151.57,0.0001989,2]
[334429296,1723089043550,-167.92454564,0.000199,2]
[334429298,1723089043560,-8800.0,0.000199,7]
[334429300,1723089043569,-869.407713,0.000199,2]
[334429302,1723089043578,-869.407713,0.000199,2]
[334429304,1723089043588,-333.01527703,0.000199,2]
[334429306,1723089043597,-150.0,0.00019911,4]
[334429308,1723089043607,-2569.46839107,0.0001994,4]
[334429310,1723089043615,-151.0,0.0001995,2]
[334429312,1723089043625,-151.0,0.0001996,2]
[334429313,1723089043634,-2569.46839107,0.0001996,4]
[334429314,1723089043644,-150.0,0.00019967,4]
[334429315,1723089043657,-5138.93678214,0.0001997,4]
[334429316,1723089043667,-200.0,0.00019973,2]
[334429317,1723089043677,-151.0,0.0001998,2]
[334429319,1723089043686,-5138.93678214,0.0001998,4]
[334429320,1723089043696,-5138.93678214,0.0001999,4]
[334429323,1723089043706,-17830.35521724,0.0002,2]
[334429324,1723089043714,-1283.81002744,0.0002,2]
[334429326,1723089043724,-155.0,0.0002,2]
[334429328,1723089043734,-6291.69894213,0.0002,2]
[334429330,1723089043743,-12817.79331306,0.0002,3]
[334429332,1723089043752,-192.0,0.0002,2]
[334429334,1723089043762,-500.0,0.0002,2]
[334429336,1723089043771,-150.0,0.0002,2]
[334429338,1723089043780,-176.0,0.0002,2]
[334429340,1723089043791,-289.12996904,0.0002,30]
[334429342,1723089043800,-179.66842235,0.0002,2]
[334429344,1723089043809,-869.407713,0.0002,2]
[334429346,1723089043818,-869.407704,0.0002,2]
[334429348,1723089043827,-150.0,0.00020022,4]
[334429350,1723089043836,-999.68,0.0002007,2]
[334429353,1723089043845,-150.0,0.00020077,4]
[334429356,1723089043854,-426.15,0.00020082,2]
[334429359,1723089043863,-426.15,0.00020082,2]
[334429362,1723089043872,-426.15,0.00020082,2]
[334429366,1723089043882,-426.15,0.00020082,2]
[334429369,1723089043891,-426.15,0.00020082,2]
[334429373,1723089043900,-426.15,0.00020082,2]
[334429376,1723089043909,-426.15,0.00020082,2]
[334429378,1723089043918,-426.15,0.00020082,2]
[334429380,1723089043927,-426.15,0.00020082,2]
[334429382,1723089043936,-426.15,0.00020082,2]
[334429384,1723089043945,-150.0,0.00020133,4]
[334429386,1723089043954,-150.0,0.00020188,4]
[334429388,1723089043963,-2024.14563285,0.00020222,2]
[334429390,1723089043972,-412.94220925,0.00020233,2]
[334429392,1723089043981,-150.0,0.00020243,4]
[334429394,1723089043991,-150.0,0.00020298,4]
[334429396,1723089044001,-150.0,0.00020354,4]
[334429398,1723089044010,-203.1662,0.00020364,2]
[334429400,1723089044019,-1120.41,0.000204,2]
[334429402,1723089044029,-150.0,0.00020409,4]
[334429404,1723089044038,-150.0,0.00020441,4]
[334429406,1723089044047,-332.39,0.00020447,2]
[334429407,1723089044056,-307.32,0.00020447,2]
[334429409,1723089044065,-150.0,0.00020464,4]
[334429412,1723089044075,-150.0,0.0002052,4]
[334429414,1723089044084,-170.312218,0.00020548,2]
[334429416,1723089044095,-150.0,0.00020575,4]
[334429418,1723089044106,-150.0,0.0002063,4]
[334429420,1723089044115,-302.58,0.00020635,2]
[334429422,1723089044127,-150.0,0.00020686,4]
[334429424,1723089044137,-150.0,0.00020741,4]
[334429426,1723089044147,-152.0,0.00020774,3]
[334429428,1723089044160,-150.0,0.00020796,4]
[334429430,1723089044169,-150.0,0.00020852,4]
[334429432,1723089044178,-506.53042322,0.00020896,2]
[334429433,1723089044187,-333.01527703,0.000209,2]
[334429435,1723089044196,-426.15,0.00020904,2]
[334429437,1723089044206,-426.15,0.00020904,2]
[334429439,1723089044215,-150.0,0.00020907,4]
[334429441,1723089044224,-999.68,0.00020915,2]
[334429443,1723089044233,-150.0,0.00020962,4]
[334429445,1723089044244,-481.30896031,0.00020999,2]
[334429447,1723089044255,-225.65001596,0.00021,2]
[334429449,1723089044266,-150.70996734,0.00021,2]
[334429451,1723089044277,-689.26213,0.00021,2]
[334429453,1723089044286,-150.0,0.00021018,4]
[334429455,1723089044295,-150.0,0.00021073,4]
[334429457,1723089044305,-150.0,0.00021128,4]
[334429459,1723089044314,-150.0,0.00021183,4]
[334429461,1723089044323,-3796.83366182,0.00021225,2]
[334429463,1723089044332,-150.0,0.00021239,4]
[334429465,1723089044342,-150.0,0.00021294,4]
[334429467,1723089044352,-400.0,0.00021342,2]
[334429469,1723089044362,-150.0,0.00021349,4]
[334429471,1723089044372,-282.92,0.00021367,2]
[334429473,1723089044382,-170.312218,0.0002137,2]
[334429475,1723089044391,-498.92374141,0.00021389,2]
[334429477,1723089044400,-150.0,0.00021405,4]
[334429479,1723089044410,-969.58435139,0.0002142,2]
[334429481,1723089044419,-150.0,0.0002146,4]
[334429482,1723089044428,-150.0,0.00021515,4]
[334429484,1723089044437,-150.0,0.00021571,4]
[334429486,1723089044446,-190.24,0.00021589,30]
[334429488,1723089044457,-150.0,0.00021626,4]
[334429490,1723089044466,-150.0,0.00021681,4]
[334429492,1723089044475,-198.84,0.00021726,2]
[334429494,1723089044485,-150.0,0.00021726,2]
[334429496,1723089044494,-150.0,0.00021726,2]
[334429498,1723089044504,-150.0,0.00021726,2]
[334429500,1723089044513,-426.15,0.00021726,2]
[334429502,1723089044523,-150.0,0.00021737,4]
[334429504,1723089044533,-999.68,0.0002176,2]
[334429506,1723089044542,-412.94220925,0.00021789,2]
[334429508,1723089044551,-150.0,0.00021792,4]
[334429510,1723089044561,-151.57,0.00021817,2]
[334429511,1723089044570,-151.57,0.00021817,2]
[334429513,1723089044579,-88982.56628798,0.00021827,14]
[334429516,1723089044594,-400.0,0.00021827,14]
[334429518,1723089044605,-59816.36945436,0.00021827,14]
[334429530,1723089044729,-155.0,0.0001443,2]
[334429532,1723089044738,-574.65772681,0.00016897,2]
[334429534,1723089044748,-366.12442373,0.00019599,2]
[334429536,1723089044764,-160.95203056,0.00019599,2]
[334429538,1723089044773,-176.98803944,0.00021827,14]
[334429540,1723089044784,-38880.88023242,0.00021827,14]
[334429542,1723089044793,-150.0,0.00021847,4]
[334429544,1723089044802,-2006.09320342,0.00021858,2]
[334429546,1723089044812,-1770.65376555,0.00021868,5]
[334429548,1723089044821,-1102.56252315,0.00021868,5]
[334429550,1723089044831,-9164.63565718,0.000219,7]
[334429552,1723089044842,-4135.36434282,0.000219,7]
[334429554,1723089044851,-9397.59909906,0.000219,30]
[334429556,1723089044860,-2000.0,0.000219,2]
[334429558,1723089044869,-333.01527703,0.000219,2]
[334429560,1723089044878,-150.0,0.00021903,4]
[334429562,1723089044887,-161.77207177,0.00021918,30]
[334429563,1723089044896,-1050.94,0.00021918,2]
[334429565,1723089044906,-151.0,0.00021918,2]
[334429567,1723089044915,-150.0,0.00021918,2]
[334429569,1723089044924,-150.0,0.00021918,2]
[334429571,1723089044933,-150.0,0.00021918,2]
[334429573,1723089044942,-936.32238204,0.00021931,2]
[334429575,1723089044952,-150.0,0.00021958,4]
[334429577,1723089044961,-150.0,0.00021973,2]